[Event "Live Chess"]
[Site "Chess.com"]
[Date "2023.05.21"]
[Round "-"]
[White "HD_IN4k"]
[Black "Pablo_dmp"]
[Result "0-1"]
[WhiteElo "391"]
[BlackElo "1877"]
[TimeControl "300"]
[EndTime "16:03:57 PDT"]
[Termination "Pablo_dmp won by checkmate"]

1. d4 {[%clk 0:04:57.7]} 1... Nf6 {[%clk 0:04:58.8]} 2. c4 {[%clk 0:04:56.6]}
2... e6 {[%clk 0:04:58.1]} 3. f3 {[%clk 0:04:50.7]} 3... d5 {[%clk 0:04:55.9]}
4. cxd5 {[%clk 0:04:45.4]} 4... exd5 {[%clk 0:04:55.8]} 5. e4 {[%clk 0:04:43.9]}
5... dxe4 {[%clk 0:04:54.9]} 6. fxe4 {[%clk 0:04:40.3]} 6... Nxe4 {[%clk
0:04:54.8]} 7. Qf3 {[%clk 0:04:17.8]} 7... Bb4+ {[%clk 0:04:50.6]} 8. Bd2 {[%clk
0:04:07.9]} 8... Nxd2 {[%clk 0:04:47.3]} 9. Nxd2 {[%clk 0:04:06.2]} 9... O-O
{[%clk 0:04:46.3]} 10. a3 {[%clk 0:04:03.7]} 10... Re8+ {[%clk 0:04:45]} 11. Ne2
{[%clk 0:04:00.1]} 11... Bxd2+ {[%clk 0:04:41.6]} 12. Kxd2 {[%clk 0:03:56.9]}
12... c5 {[%clk 0:04:39.7]} 13. Re1 {[%clk 0:03:52.5]} 13... cxd4 {[%clk
0:04:38.1]} 14. Nxd4 {[%clk 0:03:43.3]} 14... Qxd4+ {[%clk 0:04:36.1]} 15. Qd3
{[%clk 0:03:40.1]} 15... Qxd3+ {[%clk 0:04:34.8]} 16. Kxd3 {[%clk 0:03:38.9]}
16... Rxe1 {[%clk 0:04:34.7]} 17. Kd2 {[%clk 0:03:34.1]} 17... Ra1 {[%clk
0:04:31.9]} 18. h4 {[%clk 0:03:28.5]} 18... Bg4 {[%clk 0:04:29.6]} 19. g3 {[%clk
0:03:25.6]} 19... Nc6 {[%clk 0:04:25.8]} 20. b3 {[%clk 0:03:22.9]} 20... Re8
{[%clk 0:04:23.4]} 21. b4 {[%clk 0:03:21.2]} 21... Ree1 {[%clk 0:04:21.8]} 22.
Bg2 {[%clk 0:03:16.4]} 22... Rxh1 {[%clk 0:04:20.1]} 23. Bxh1 {[%clk 0:03:16]}
23... Rxh1 {[%clk 0:04:19.3]} 24. Kc3 {[%clk 0:03:13.2]} 24... Rh3 {[%clk
0:04:18.3]} 25. Kb3 {[%clk 0:03:12.7]} 25... Rxg3+ {[%clk 0:04:17.3]} 26. Ka4
{[%clk 0:03:11.9]} 26... Rh3 {[%clk 0:04:17.2]} 27. b5 {[%clk 0:03:10.5]} 27...
Rxh4 {[%clk 0:04:17.1]} 28. bxc6 {[%clk 0:03:09.1]} 28... bxc6 {[%clk
0:04:16.4]} 29. Kb4 {[%clk 0:03:07.4]} 29... Bd7+ {[%clk 0:04:16.3]} 30. Kb3
{[%clk 0:03:02.1]} 30... c5 {[%clk 0:04:14.9]} 31. a4 {[%clk 0:03:01.1]} 31...
Rxa4 {[%clk 0:04:14.8]} 32. Kc3 {[%clk 0:02:58.3]} 32... a5 {[%clk 0:04:14.7]}
33. Kd3 {[%clk 0:02:57]} 33... Rb4 {[%clk 0:04:14.3]} 34. Kc3 {[%clk 0:02:56.5]}
34... a4 {[%clk 0:04:14.2]} 35. Kc2 {[%clk 0:02:54.4]} 35... a3 {[%clk
0:04:14.1]} 36. Kc3 {[%clk 0:02:53.3]} 36... a2 {[%clk 0:04:14]} 37. Kc2 {[%clk
0:02:51.9]} 37... a1=R {[%clk 0:04:13.9]} 38. Kc3 {[%clk 0:02:50.6]} 38... Ra3+
{[%clk 0:04:13.8]} 39. Kc2 {[%clk 0:02:49.4]} 39... Bf5+ {[%clk 0:04:13.5]} 40.
Kd2 {[%clk 0:02:48.4]} 40... Rb2+ {[%clk 0:04:12.6]} 41. Kc1 {[%clk 0:02:46.9]}
41... Raa2 {[%clk 0:04:11.5]} 42. Kd1 {[%clk 0:02:42.4]} 42... Rb1# {[%clk
0:04:10.9]} 0-1

[Event "Live Chess"]
[Site "Chess.com"]
[Date "2023.05.21"]
[Round "-"]
[White "laminaaprod"]
[Black "f4nomore"]
[Result "1-0"]
[WhiteElo "2247"]
[BlackElo "1425"]
[TimeControl "300"]
[EndTime "16:04:10 PDT"]
[Termination "laminaaprod won by checkmate"]

1. d4 {[%clk 0:04:55.3]} 1... g6 {[%clk 0:04:59.9]} 2. c4 {[%clk 0:04:54.1]}
2... Bg7 {[%clk 0:04:54.8]} 3. Nc3 {[%clk 0:04:46.8]} 3... d6 {[%clk 0:04:53.8]}
4. e4 {[%clk 0:04:45.6]} 4... a6 {[%clk 0:04:52.1]} 5. Nf3 {[%clk 0:04:44.9]}
5... Nd7 {[%clk 0:04:51]} 6. h3 {[%clk 0:04:40.3]} 6... Ngf6 {[%clk 0:04:49.1]}
7. e5 {[%clk 0:04:35.7]} 7... dxe5 {[%clk 0:04:47.2]} 8. dxe5 {[%clk 0:04:31.4]}
8... Ng8 {[%clk 0:04:39.7]} 9. e6 {[%clk 0:04:28.6]} 9... fxe6 {[%clk
0:04:35.6]} 10. Ng5 {[%clk 0:04:27.6]} 10... Nc5 {[%clk 0:04:07.8]} 11. Qxd8+
{[%clk 0:04:11.3]} 11... Kxd8 {[%clk 0:04:05.4]} 12. Nf7+ {[%clk 0:04:11.2]}
12... Ke8 {[%clk 0:03:58.7]} 13. Nxh8 {[%clk 0:04:09.3]} 13... Bxh8 {[%clk
0:03:57.5]} 14. Be3 {[%clk 0:04:04.1]} 14... b6 {[%clk 0:03:48.5]} 15. Bxc5
{[%clk 0:04:02.5]} 15... bxc5 {[%clk 0:03:46.6]} 16. Be2 {[%clk 0:03:57.4]}
16... Bb7 {[%clk 0:03:45.1]} 17. O-O {[%clk 0:03:54.7]} 17... Bd4 {[%clk
0:03:42.7]} 18. Rad1 {[%clk 0:03:38.3]} 18... e5 {[%clk 0:03:40.5]} 19. Rd2
{[%clk 0:03:24.6]} 19... Nf6 {[%clk 0:03:37.3]} 20. Bd3 {[%clk 0:03:06.7]} 20...
Kf7 {[%clk 0:03:28.9]} 21. Ne2 {[%clk 0:03:04.9]} 21... e4 {[%clk 0:03:15.6]}
22. Bb1 {[%clk 0:02:57.3]} 22... e3 {[%clk 0:03:11.9]} 23. Rdd1 {[%clk
0:02:39.7]} 23... exf2+ {[%clk 0:03:06.5]} 24. Kh2 {[%clk 0:02:38]} 24... Kg7
{[%clk 0:03:04.7]} 25. Nxd4 {[%clk 0:02:35.6]} 25... cxd4 {[%clk 0:03:02.4]} 26.
Rxd4 {[%clk 0:02:33.8]} 26... e5 {[%clk 0:02:56.8]} 27. Rd2 {[%clk 0:02:27]}
27... Nh5 {[%clk 0:02:35.5]} 28. Rdxf2 {[%clk 0:02:22.6]} 28... Re8 {[%clk
0:02:26.7]} 29. Rf7+ {[%clk 0:02:20.6]} 29... Kh6 {[%clk 0:02:23.8]} 30. Rxc7
{[%clk 0:02:17.6]} 30... Ba8 {[%clk 0:02:21]} 31. Rff7 {[%clk 0:02:16.2]} 31...
e4 {[%clk 0:02:14.4]} 32. h4 {[%clk 0:02:14.4]} 32... Rh8 {[%clk 0:02:04.8]} 33.
g4 {[%clk 0:02:06.4]} 33... e3 {[%clk 0:01:53.8]} 34. g5# {[%clk 0:02:02.3]} 1-0

[Event "Live Chess"]
[Site "Chess.com"]
[Date "2023.05.21"]
[Round "-"]
[White "whitedjohn"]
[Black "manthanit"]
[Result "1-0"]
[WhiteElo "1648"]
[BlackElo "1054"]
[TimeControl "300"]
[EndTime "16:04:10 PDT"]
[Termination "whitedjohn won by resignation"]

1. e4 {[%clk 0:04:54]} 1... e6 {[%clk 0:04:59.9]} 2. d4 {[%clk 0:04:51.7]} 2...
d5 {[%clk 0:04:59.5]} 3. Nc3 {[%clk 0:04:49.3]} 3... c5 {[%clk 0:04:58]} 4. dxc5
{[%clk 0:04:46.4]} 4... Bxc5 {[%clk 0:04:56.8]} 5. exd5 {[%clk 0:04:45]} 5...
exd5 {[%clk 0:04:56]} 6. Qxd5 {[%clk 0:04:42.9]} 6... Qb6 {[%clk 0:04:30.5]} 7.
Qe4+ {[%clk 0:04:21.9]} 7... Ne7 {[%clk 0:04:28.8]} 8. Nd5 {[%clk 0:04:04.3]}
8... Bxf2+ {[%clk 0:04:26.6]} 9. Ke2 {[%clk 0:04:01.3]} 9... Qe6 {[%clk
0:04:18.7]} 10. Nc7+ {[%clk 0:03:56.4]} 10... Kd7 {[%clk 0:04:12.2]} 11. Nxe6
{[%clk 0:03:55.7]} 11... fxe6 {[%clk 0:04:09.8]} 12. Kxf2 {[%clk 0:03:54]} 12...
Nbc6 {[%clk 0:04:08.6]} 13. Bc4 {[%clk 0:03:50.2]} 13... Kc7 {[%clk 0:04:05.6]}
14. Bxe6 {[%clk 0:03:46.3]} 14... Bxe6 {[%clk 0:04:04.4]} 15. Qxe6 {[%clk
0:03:44.3]} 15... Rad8 {[%clk 0:04:01.5]} 16. Nf3 {[%clk 0:03:40.9]} 16... Rhf8
{[%clk 0:04:00.3]} 17. Bg5 {[%clk 0:03:36.4]} 17... Nd4 {[%clk 0:03:47.3]} 18.
Qxe7+ {[%clk 0:03:33.3]} 18... Kb8 {[%clk 0:03:44.9]} 19. Qxd8+ {[%clk
0:03:25.5]} 19... Rxd8 {[%clk 0:03:42.2]} 20. Bxd8 {[%clk 0:03:25]} 20... Nxf3
{[%clk 0:03:41.7]} 1-0

[Event "Live Chess"]
[Site "Chess.com"]
[Date "2023.05.21"]
[Round "-"]
[White "JohanKjeldahl"]
[Black "karimghalambaz"]
[Result "1-0"]
[WhiteElo "1875"]
[BlackElo "1280"]
[TimeControl "300"]
[EndTime "16:04:23 PDT"]
[Termination "JohanKjeldahl won by resignation"]

1. e4 {[%clk 0:04:57.4]} 1... c5 {[%clk 0:04:48]} 2. Nf3 {[%clk 0:04:55.6]} 2...
d6 {[%clk 0:04:46.2]} 3. d4 {[%clk 0:04:54.3]} 3... cxd4 {[%clk 0:04:44.3]} 4.
Nxd4 {[%clk 0:04:53.2]} 4... Nc6 {[%clk 0:04:42.1]} 5. Nc3 {[%clk 0:04:50.4]}
5... g6 {[%clk 0:04:39.3]} 6. Be3 {[%clk 0:04:48.4]} 6... Bg7 {[%clk 0:04:37.7]}
7. f3 {[%clk 0:04:47.3]} 7... Nf6 {[%clk 0:04:32.9]} 8. Bc4 {[%clk 0:04:45.7]}
8... O-O {[%clk 0:04:22.7]} 9. Qd2 {[%clk 0:04:44.2]} 9... Re8 {[%clk
0:04:19.6]} 10. O-O-O {[%clk 0:04:41.4]} 10... a6 {[%clk 0:04:00.1]} 11. h4
{[%clk 0:04:37.8]} 11... h5 {[%clk 0:03:56.3]} 12. Rdg1 {[%clk 0:04:27.3]} 12...
Rb8 {[%clk 0:03:49.7]} 13. g4 {[%clk 0:04:15.5]} 13... e5 {[%clk 0:03:47]} 14.
Nxc6 {[%clk 0:04:09.3]} 14... bxc6 {[%clk 0:03:42.8]} 15. gxh5 {[%clk
0:04:07.7]} 15... Nxh5 {[%clk 0:03:40.9]} 16. Bg5 {[%clk 0:03:55.6]} 16... Qc7
{[%clk 0:03:27.1]} 17. Bb3 {[%clk 0:03:44.1]} 17... d5 {[%clk 0:03:21.4]} 18.
exd5 {[%clk 0:03:40.3]} 18... cxd5 {[%clk 0:03:19.5]} 19. Nxd5 {[%clk
0:03:38.1]} 19... Qc5 {[%clk 0:03:07.5]} 20. Ne7+ {[%clk 0:03:00.4]} 20... Rxe7
{[%clk 0:03:02.7]} 21. Qd8+ {[%clk 0:02:57.5]} 21... Bf8 {[%clk 0:02:51.4]} 22.
Bxe7 {[%clk 0:02:50.5]} 22... Qxe7 {[%clk 0:02:47.9]} 23. Qd3 {[%clk 0:02:48.4]}
23... Qf6 {[%clk 0:02:31.7]} 24. Rxg6+ {[%clk 0:02:31.7]} 24... Bg7 {[%clk
0:02:15.3]} 25. Rxf6 {[%clk 0:02:29.3]} 25... Nxf6 {[%clk 0:02:13.3]} 26. Rg1
{[%clk 0:02:23.7]} 26... Be6 {[%clk 0:02:07.9]} 27. Bxe6 {[%clk 0:02:19.4]}
27... fxe6 {[%clk 0:02:05.6]} 28. Qg6 {[%clk 0:02:17.4]} 28... Rb7 {[%clk
0:02:02.9]} 29. Qxf6 {[%clk 0:02:14.9]} 29... Rf7 {[%clk 0:02:00.8]} 30. Qxe6
{[%clk 0:02:10.2]} 30... Kf8 {[%clk 0:01:56.1]} 31. Qc8+ {[%clk 0:02:01.6]}
31... Ke7 {[%clk 0:01:54]} 32. Qxa6 {[%clk 0:02:00.2]} 32... Rxf3 {[%clk
0:01:50]} 33. Rxg7+ {[%clk 0:01:57.4]} 1-0

[Event "Live Chess"]
[Site "Chess.com"]
[Date "2023.05.21"]
[Round "-"]
[White "jennybobby44"]
[Black "flyingpuffins"]
[Result "0-1"]
[WhiteElo "1844"]
[BlackElo "1936"]
[TimeControl "300"]
[EndTime "16:04:54 PDT"]
[Termination "flyingpuffins won by resignation"]

1. Nf3 {[%clk 0:04:59.2]} 1... d5 {[%clk 0:04:53.8]} 2. d4 {[%clk 0:04:57.9]}
2... Nf6 {[%clk 0:04:51.6]} 3. g3 {[%clk 0:04:57.2]} 3... e6 {[%clk 0:04:45.7]}
4. Bg2 {[%clk 0:04:56.3]} 4... Be7 {[%clk 0:04:42.3]} 5. O-O {[%clk 0:04:55.5]}
5... O-O {[%clk 0:04:41.7]} 6. c4 {[%clk 0:04:54.7]} 6... dxc4 {[%clk
0:04:41.6]} 7. Qc2 {[%clk 0:04:53.2]} 7... b6 {[%clk 0:04:35.2]} 8. Qxc4 {[%clk
0:04:44.7]} 8... Bb7 {[%clk 0:04:20.6]} 9. Rd1 {[%clk 0:04:33.4]} 9... Nbd7
{[%clk 0:04:19]} 10. Nc3 {[%clk 0:04:26]} 10... Rc8 {[%clk 0:04:17.5]} 11. Qb3
{[%clk 0:04:24.5]} 11... c5 {[%clk 0:04:16.3]} 12. dxc5 {[%clk 0:04:20.5]} 12...
Bxc5 {[%clk 0:04:15]} 13. Bg5 {[%clk 0:04:11.6]} 13... Qc7 {[%clk 0:04:12.6]}
14. Rac1 {[%clk 0:03:32]} 14... Ng4 {[%clk 0:04:04.5]} 15. Rf1 {[%clk
0:03:24.9]} 15... h6 {[%clk 0:03:58]} 16. Bd2 {[%clk 0:03:23.7]} 16... Qb8
{[%clk 0:03:47.5]} 17. h3 {[%clk 0:03:21.2]} 17... Nge5 {[%clk 0:03:38.7]} 18.
Na4 {[%clk 0:03:01.9]} 18... Nxf3+ {[%clk 0:03:33.9]} 19. Bxf3 {[%clk
0:03:00.8]} 19... Bxf3 {[%clk 0:03:32.3]} 20. exf3 {[%clk 0:03:00.7]} 20...
Qxg3+ {[%clk 0:03:10.4]} 21. Kh1 {[%clk 0:02:54.3]} 21... Qxh3+ {[%clk
0:03:09.6]} 22. Kg1 {[%clk 0:02:52.1]} 22... Qg3+ {[%clk 0:02:41]} 23. Kh1
{[%clk 0:02:50.7]} 23... Bxf2 {[%clk 0:02:40.6]} 0-1

[Event "Live Chess"]
[Site "Chess.com"]
[Date "2023.05.21"]
[Round "-"]
[White "SupremeTactician"]
[Black "birdseed45"]
[Result "1-0"]
[WhiteElo "2335"]
[BlackElo "1865"]
[TimeControl "300"]
[EndTime "16:05:09 PDT"]
[Termination "SupremeTactician won by resignation"]

1. e4 {[%clk 0:04:59]} 1... c5 {[%clk 0:04:59]} 2. Nf3 {[%clk 0:04:58.1]} 2...
Nc6 {[%clk 0:04:57.7]} 3. d4 {[%clk 0:04:57.4]} 3... cxd4 {[%clk 0:04:57.2]} 4.
Nxd4 {[%clk 0:04:57.3]} 4... e5 {[%clk 0:04:55.7]} 5. Nb5 {[%clk 0:04:56]} 5...
d6 {[%clk 0:04:53.7]} 6. N1c3 {[%clk 0:04:55.2]} 6... a6 {[%clk 0:04:53]} 7. Na3
{[%clk 0:04:54.6]} 7... Nf6 {[%clk 0:04:51.9]} 8. Bg5 {[%clk 0:04:53.1]} 8...
Be7 {[%clk 0:04:51.2]} 9. Bxf6 {[%clk 0:04:52.3]} 9... Bxf6 {[%clk 0:04:51]} 10.
Nd5 {[%clk 0:04:51.8]} 10... Bg5 {[%clk 0:04:50.4]} 11. c4 {[%clk 0:04:44.2]}
11... O-O {[%clk 0:04:47.6]} 12. b4 {[%clk 0:04:40.6]} 12... Be6 {[%clk
0:04:40]} 13. Rb1 {[%clk 0:04:36]} 13... Bxd5 {[%clk 0:04:31.3]} 14. cxd5 {[%clk
0:04:33.9]} 14... Nd4 {[%clk 0:04:27.1]} 15. Bd3 {[%clk 0:04:33.1]} 15... Rc8
{[%clk 0:04:14]} 16. O-O {[%clk 0:04:27.8]} 16... Qf6 {[%clk 0:04:06.9]} 17. Nc4
{[%clk 0:04:21.7]} 17... b5 {[%clk 0:03:58.8]} 18. Nb6 {[%clk 0:04:15.2]} 18...
Rc3 {[%clk 0:03:53.3]} 19. Nd7 {[%clk 0:04:11.6]} 19... Qg6 {[%clk 0:03:44.1]}
20. Nxf8 {[%clk 0:04:10.6]} 20... Kxf8 {[%clk 0:03:42.6]} 21. Kh1 {[%clk
0:04:08.8]} 21... Bf4 {[%clk 0:03:32]} 22. g3 {[%clk 0:04:02.1]} 22... Bg5
{[%clk 0:03:28]} 23. f4 {[%clk 0:03:57.7]} 23... exf4 {[%clk 0:03:21.6]} 24.
gxf4 {[%clk 0:03:57.6]} 24... Be7 {[%clk 0:03:14.7]} 25. Rc1 {[%clk 0:03:46.6]}
25... Rxc1 {[%clk 0:03:01.9]} 26. Qxc1 {[%clk 0:03:46.5]} 26... f6 {[%clk
0:02:54.6]} 27. Qc3 {[%clk 0:03:24.8]} 27... Ne2 {[%clk 0:02:29.5]} 28. Bxe2
{[%clk 0:03:16.1]} 28... Qxe4+ {[%clk 0:02:28.4]} 29. Bf3 {[%clk 0:03:15.2]}
29... Qxf4 {[%clk 0:02:26.5]} 30. Qc8+ {[%clk 0:03:14]} 30... Kf7 {[%clk
0:02:23.4]} 31. Bh5+ {[%clk 0:03:11.5]} 1-0

[Event "Live Chess"]
[Site "Chess.com"]
[Date "2023.05.21"]
[Round "-"]
[White "KeithArkell"]
[Black "chessfiction"]
[Result "1-0"]
[WhiteElo "2611"]
[BlackElo "2353"]
[TimeControl "300"]
[EndTime "16:05:25 PDT"]
[Termination "KeithArkell won by resignation"]

1. d4 {[%clk 0:04:58.5]} 1... d6 {[%clk 0:04:59.3]} 2. Nf3 {[%clk 0:04:57.3]}
2... Nf6 {[%clk 0:04:59.2]} 3. g3 {[%clk 0:04:56.8]} 3... g6 {[%clk 0:04:58.8]}
4. Bg2 {[%clk 0:04:56.3]} 4... Bg7 {[%clk 0:04:58.7]} 5. c4 {[%clk 0:04:55.9]}
5... O-O {[%clk 0:04:58.6]} 6. Nc3 {[%clk 0:04:55.4]} 6... Bd7 {[%clk
0:04:58.1]} 7. d5 {[%clk 0:04:54.8]} 7... c5 {[%clk 0:04:57.3]} 8. O-O {[%clk
0:04:52.4]} 8... a6 {[%clk 0:04:56.2]} 9. a4 {[%clk 0:04:51.2]} 9... Bg4 {[%clk
0:04:52.5]} 10. h3 {[%clk 0:04:50.3]} 10... Bxf3 {[%clk 0:04:51.5]} 11. exf3
{[%clk 0:04:49.8]} 11... Nbd7 {[%clk 0:04:50.9]} 12. f4 {[%clk 0:04:49.3]} 12...
Rb8 {[%clk 0:04:49.1]} 13. Re1 {[%clk 0:04:47.5]} 13... Re8 {[%clk 0:04:48]} 14.
Qd3 {[%clk 0:04:44.4]} 14... Qc7 {[%clk 0:04:42.1]} 15. Bd2 {[%clk 0:04:43.4]}
15... e6 {[%clk 0:04:40.3]} 16. dxe6 {[%clk 0:04:42.2]} 16... fxe6 {[%clk
0:04:39.9]} 17. Rad1 {[%clk 0:04:37.5]} 17... Nf8 {[%clk 0:04:31.2]} 18. Bc1
{[%clk 0:04:35.9]} 18... Red8 {[%clk 0:04:30.3]} 19. g4 {[%clk 0:04:33.1]} 19...
b5 {[%clk 0:04:19.3]} 20. axb5 {[%clk 0:04:31.9]} 20... d5 {[%clk 0:04:15.6]}
21. cxd5 {[%clk 0:04:24.2]} 21... c4 {[%clk 0:04:04.4]} 22. d6 {[%clk
0:03:58.8]} 22... Qc5 {[%clk 0:03:51.9]} 23. Qe3 {[%clk 0:03:47.6]} 23... Qxe3
{[%clk 0:03:47.6]} 24. Bxe3 {[%clk 0:03:47.5]} 24... axb5 {[%clk 0:03:47.2]} 25.
Ba7 {[%clk 0:03:46]} 25... b4 {[%clk 0:03:42]} 26. Bxb8 {[%clk 0:03:45.1]} 26...
bxc3 {[%clk 0:03:41.2]} 27. Bc7 {[%clk 0:03:43.8]} 27... cxb2 {[%clk 0:03:35.4]}
28. Bxd8 {[%clk 0:03:42.8]} 28... c3 {[%clk 0:03:34.9]} 29. Re2 {[%clk
0:03:35.9]} 29... Nd5 {[%clk 0:03:27.6]} 30. Bxd5 {[%clk 0:03:15.9]} 30... exd5
{[%clk 0:03:27.5]} 31. Rc2 {[%clk 0:02:37.6]} 31... d4 {[%clk 0:03:25.7]} 32.
Ba5 {[%clk 0:02:32.4]} 32... d3 {[%clk 0:03:17]} 33. Rxc3 {[%clk 0:02:30]} 33...
Bxc3 {[%clk 0:03:15.6]} 34. Bxc3 {[%clk 0:02:28.9]} 34... Kf7 {[%clk 0:03:11.3]}
35. Bxb2 {[%clk 0:02:28]} 35... Ke6 {[%clk 0:03:11.2]} 36. Rxd3 {[%clk
0:02:27.2]} 36... Nd7 {[%clk 0:03:10.7]} 37. Be5 {[%clk 0:02:25.6]} 1-0

[Event "Live Chess"]
[Site "Chess.com"]
[Date "2023.05.21"]
[Round "-"]
[White "mikkyb4"]
[Black "NAZRIZ1977"]
[Result "0-1"]
[WhiteElo "1031"]
[BlackElo "2049"]
[TimeControl "300"]
[EndTime "16:05:37 PDT"]
[Termination "NAZRIZ1977 won by resignation"]

1. e4 {[%clk 0:04:58.3]} 1... c5 {[%clk 0:04:59.1]} 2. a3 {[%clk 0:04:56.8]}
2... d5 {[%clk 0:04:58]} 3. exd5 {[%clk 0:04:54.6]} 3... Qxd5 {[%clk 0:04:57.2]}
4. c4 {[%clk 0:04:49.5]} 4... Qd8 {[%clk 0:04:54.4]} 5. b4 {[%clk 0:04:41.3]}
5... Nf6 {[%clk 0:04:45.9]} 6. Nf3 {[%clk 0:04:33.6]} 6... Bg4 {[%clk
0:04:43.9]} 7. Be2 {[%clk 0:04:32]} 7... g6 {[%clk 0:04:41.6]} 8. Bb2 {[%clk
0:04:26.9]} 8... Bg7 {[%clk 0:04:40.8]} 9. O-O {[%clk 0:04:22.9]} 9... O-O
{[%clk 0:04:39.4]} 10. Ne5 {[%clk 0:03:55.2]} 10... Bxe2 {[%clk 0:04:35.9]} 11.
Qxe2 {[%clk 0:03:53.9]} 11... Nfd7 {[%clk 0:04:28.1]} 12. d3 {[%clk 0:03:38.3]}
12... Nxe5 {[%clk 0:04:08.3]} 13. Bxe5 {[%clk 0:03:36.1]} 13... Bxe5 {[%clk
0:04:07.6]} 14. Qxe5 {[%clk 0:03:35.2]} 14... cxb4 {[%clk 0:04:07.1]} 15. axb4
{[%clk 0:03:32.9]} 15... Qxd3 {[%clk 0:04:01.5]} 16. Nc3 {[%clk 0:03:26.9]}
16... Nc6 {[%clk 0:03:57.9]} 17. Qe1 {[%clk 0:03:20.9]} 17... Nxb4 {[%clk
0:03:52.6]} 18. Rd1 {[%clk 0:03:00.3]} 18... Qxc4 {[%clk 0:03:48.9]} 19. Ne4
{[%clk 0:02:47.1]} 19... Rfd8 {[%clk 0:03:35.3]} 20. Nd2 {[%clk 0:02:35.8]}
20... Qe6 {[%clk 0:03:19.6]} 21. Qxe6 {[%clk 0:02:22.8]} 21... fxe6 {[%clk
0:03:17]} 22. Nf3 {[%clk 0:02:16.3]} 22... Rxd1 {[%clk 0:03:14.4]} 23. Rxd1
{[%clk 0:02:14.9]} 23... a5 {[%clk 0:03:10.3]} 24. Ng5 {[%clk 0:02:13.1]} 24...
a4 {[%clk 0:03:08.9]} 25. Nxe6 {[%clk 0:02:12.1]} 25... a3 {[%clk 0:03:07.5]}
26. Nc7 {[%clk 0:02:05.7]} 26... Rc8 {[%clk 0:02:58.3]} 27. Nb5 {[%clk
0:01:59.5]} 27... a2 {[%clk 0:02:56.4]} 28. Ra1 {[%clk 0:01:57.1]} 28... Ra8
{[%clk 0:02:31.7]} 29. Nc7 {[%clk 0:01:54]} 29... Nc2 {[%clk 0:02:26.3]} 0-1

[Event "Live Chess"]
[Site "Chess.com"]
[Date "2023.05.21"]
[Round "-"]
[White "Jo1ts"]
[Black "xx_blindpuffin_xx"]
[Result "0-1"]
[WhiteElo "779"]
[BlackElo "2208"]
[TimeControl "300"]
[EndTime "16:05:49 PDT"]
[Termination "xx_blindpuffin_xx won by resignation"]

1. d4 {[%clk 0:04:56.7]} 1... c5 {[%clk 0:04:58.8]} 2. Bf4 {[%clk 0:04:56.1]}
2... cxd4 {[%clk 0:04:57.3]} 3. Qxd4 {[%clk 0:04:56]} 3... Nc6 {[%clk
0:04:56.6]} 4. Qa4 {[%clk 0:04:52.6]} 4... Qb6 {[%clk 0:04:54.5]} 5. b3 {[%clk
0:04:40.6]} 5... d6 {[%clk 0:04:48]} 6. e4 {[%clk 0:04:30.8]} 6... Bd7 {[%clk
0:04:40.3]} 7. Qa3 {[%clk 0:04:28.3]} 7... Nf6 {[%clk 0:04:34.4]} 8. Nf3 {[%clk
0:04:23.6]} 8... Nxe4 {[%clk 0:04:32.3]} 9. Bd3 {[%clk 0:04:20.3]} 9... Nc5
{[%clk 0:04:27.7]} 10. Be3 {[%clk 0:04:16.3]} 10... Nxd3+ {[%clk 0:04:26.3]} 11.
cxd3 {[%clk 0:04:10]} 11... Qb4+ {[%clk 0:04:25.2]} 12. Qxb4 {[%clk 0:04:08.1]}
12... Nxb4 {[%clk 0:04:25.1]} 13. O-O {[%clk 0:04:05.1]} 13... Nc2 {[%clk
0:04:23.3]} 14. Bd4 {[%clk 0:04:00]} 14... Nxa1 {[%clk 0:04:11.6]} 15. Bxa1
{[%clk 0:03:59.9]} 15... e5 {[%clk 0:04:07.1]} 16. d4 {[%clk 0:03:57.7]} 16...
e4 {[%clk 0:04:02]} 17. Ng5 {[%clk 0:03:54.2]} 17... d5 {[%clk 0:04:00.9]} 18.
f3 {[%clk 0:03:49.6]} 18... Be7 {[%clk 0:03:54.9]} 19. Nh3 {[%clk 0:03:44.1]}
19... Bxh3 {[%clk 0:03:53.4]} 20. gxh3 {[%clk 0:03:43.1]} 20... exf3 {[%clk
0:03:51.6]} 21. Rxf3 {[%clk 0:03:41.1]} 21... O-O {[%clk 0:03:51.5]} 22. Nd2
{[%clk 0:03:38.2]} 22... Rac8 {[%clk 0:03:49.7]} 23. Bb2 {[%clk 0:03:33.7]}
23... Rc2 {[%clk 0:03:48.1]} 0-1

[Event "Live Chess"]
[Site "Chess.com"]
[Date "2023.05.21"]
[Round "-"]
[White "jk0110"]
[Black "smoggyrabbit"]
[Result "0-1"]
[WhiteElo "1115"]
[BlackElo "1698"]
[TimeControl "300"]
[EndTime "16:06:15 PDT"]
[Termination "smoggyrabbit won by resignation"]

1. e4 {[%clk 0:04:58.9]} 1... e6 {[%clk 0:04:57.9]} 2. d4 {[%clk 0:04:55.7]}
2... d5 {[%clk 0:04:56.7]} 3. Nc3 {[%clk 0:04:54.4]} 3... Nf6 {[%clk 0:04:54.1]}
4. e5 {[%clk 0:04:52.4]} 4... Nfd7 {[%clk 0:04:52.9]} 5. Nf3 {[%clk 0:04:49.1]}
5... c5 {[%clk 0:04:52]} 6. dxc5 {[%clk 0:04:26]} 6... Nc6 {[%clk 0:04:49.2]} 7.
Bd3 {[%clk 0:04:20]} 7... Ndxe5 {[%clk 0:04:45.6]} 8. Nxe5 {[%clk 0:04:15.7]}
8... Nxe5 {[%clk 0:04:44.6]} 9. Bb5+ {[%clk 0:04:10.4]} 9... Bd7 {[%clk
0:04:31.3]} 10. Bxd7+ {[%clk 0:04:01.5]} 10... Nxd7 {[%clk 0:04:24]} 11. Be3
{[%clk 0:03:59.2]} 11... Bxc5 {[%clk 0:04:19.5]} 12. Bxc5 {[%clk 0:03:52.3]}
12... Nxc5 {[%clk 0:04:19.4]} 13. O-O {[%clk 0:03:48.1]} 13... O-O {[%clk
0:04:17.4]} 14. Ne2 {[%clk 0:03:43.5]} 14... Qf6 {[%clk 0:04:07]} 15. Ng3 {[%clk
0:03:30.8]} 15... Qxb2 {[%clk 0:04:01.9]} 16. Nh5 {[%clk 0:03:19.4]} 16... Rac8
{[%clk 0:03:13.7]} 17. Rb1 {[%clk 0:03:16.5]} 17... Qe5 {[%clk 0:03:08.2]} 18.
f4 {[%clk 0:02:55.1]} 18... Qe3+ {[%clk 0:03:02]} 19. Kh1 {[%clk 0:02:49.8]}
19... f5 {[%clk 0:02:23.4]} 20. Rf3 {[%clk 0:02:37]} 20... Qe4 {[%clk
0:02:03.9]} 21. Rg3 {[%clk 0:02:10.2]} 21... g6 {[%clk 0:01:55]} 22. Qd2 {[%clk
0:01:43.6]} 22... Na6 {[%clk 0:01:26.7]} 23. Re1 {[%clk 0:01:37.7]} 23... Rxc2
{[%clk 0:01:02.6]} 24. Rxe4 {[%clk 0:00:45.3]} 24... Rxd2 {[%clk 0:00:59.3]} 25.
Re1 {[%clk 0:00:42.3]} 25... Nc5 {[%clk 0:00:48.7]} 26. Rg5 {[%clk 0:00:33.2]}
26... Ne4 {[%clk 0:00:43.7]} 0-1